Workbook

Sheet Personal Cash Flow Example
B1: PERSONAL CASH FLOW TEMPLATE
F3: SUMMARY
F4: I N C O M E | H4: ='Personal Cash Flow Example'!O30 -> 7257
F5: S A V I N G S | H5: ='Personal Cash Flow Example'!O41 -> 1655
F6: E X P E N S E S | H6: ='Personal Cash Flow Example'!O97 -> 5359
F8: C A S H F L O W | H8: =H4-H5-H6 -> 243
C18: Enter Income, Savings, and Expense Data below. Overview information above and totals will generate automatically.
C19: JAN | D19: FEB | E19: MAR | F19: APR | G19: MAY | H19: JUN | I19: JUL | J19: AUG | K19: SEPT | L19: OCT | M19: NOV | N19: DEC | O19: YEARLY TOTALS | Q19: MONTHLY AVG | S19: DAILY AVG
B20: INCOME
B22: Salary/Wages | C22: 5987 | O22: =SUM(C22:N22) -> 5987 | Q22: =O22/12 -> 498.9166667 | S22: =O22/365 -> 16.40273973
B23: Interest Income | C23: 200 | O23: 200 | Q23: =O23/12 -> 16.66666667 | S23: =O23/365 -> 0.5479452055
B24: Dividends | C24: 100 | O24: 100 | Q24: 8.333333333 | S24: 0.2739726027
B25: Refunds/Reimbursements | C25: 55 | O25: 55 | Q25: 4.583333333 | S25: 0.1506849315
B26: Business | C26: 500 | O26: 500 | Q26: 41.66666667 | S26: 1.369863014
B27: Pension | C27: 300 | O27: 300 | Q27: 25 | S27: 0.8219178082
B28: Misc. | C28: 115 | O28: 115 | Q28: 9.583333333 | S28: 0.3150684932
B30: TOTAL | C30: =SUM(C22:C28) -> 7257 | D30: 0 | E30: 0 | F30: 0 | G30: 0 | H30: 0 | I30: 0 | J30: 0 | K30: 0 | L30: 0 | M30: 0 | N30: 0 | O30: =SUM(C30:N30) -> 7257 | Q30: =SUM(Q22:Q28) -> 604.75 | S30: =SUM(S22:S28) -> 19.88219178
B32: SAVINGS
B34: Emergency Fund | C34: 500 | D34: 0 | E34: 0 | F34: 0 | G34: 0 | H34: 0 | I34: 0 | J34: 0 | K34: 0 | L34: 0 | M34: 0 | N34: 0 | O34: =SUM(C34:N34) -> 500 | Q34: =O34/12 -> 41.66666667 | S34: =O34/365 -> 1.369863014
B35: Transfer to Savings | C35: 200 | D35: 0 | E35: 0 | F35: 0 | G35: 0 | H35: 0 | I35: 0 | J35: 0 | K35: 0 | L35: 0 | M35: 0 | N35: 0 | O35: 200 | Q35: =O35/12 -> 16.66666667 | S35: =O35/365 -> 0.5479452055
B36: Retirement(401K, IRA) | C36: 100 | D36: 0 | E36: 0 | F36: 0 | G36: 0 | H36: 0 | I36: 0 | J36: 0 | K36: 0 | L36: 0 | M36: 0 | N36: 0 | O36: 100 | Q36: 8.333333333 | S36: 0.2739726027
B37: Investments | C37: 55 | D37: 0 | E37: 0 | F37: 0 | G37: 0 | H37: 0 | I37: 0 | J37: 0 | K37: 0 | L37: 0 | M37: 0 | N37: 0 | O37: 55 | Q37: 4.583333333 | S37: 0.1506849315
B38: Education | C38: 500 | D38: 0 | E38: 0 | F38: 0 | G38: 0 | H38: 0 | I38: 0 | J38: 0 | K38: 0 | L38: 0 | M38: 0 | N38: 0 | O38: 500 | Q38: 41.66666667 | S38: 1.369863014
B39: Other | C39: 300 | D39: 0 | E39: 0 | F39: 0 | G39: 0 | H39: 0 | I39: 0 | J39: 0 | K39: 0 | L39: 0 | M39: 0 | N39: 0 | O39: 300 | Q39: 25 | S39: 0.8219178082
B41: TOTAL | C41: =SUM(C34:C39) -> 1655 | D41: 0 | E41: 0 | F41: 0 | G41: 0 | H41: 0 | I41: 0 | J41: 0 | K41: 0 | L41: 0 | M41: 0 | N41: 0 | O41: =SUM(C41:N41) -> 1655 | Q41: =SUM(Q34:Q39) -> 137.9166667 | S41: =SUM(S34:S39) -> 4.534246575
B43: EXPENSES
B44: HOME
B45: Mortgage/rent | C45: 2250 | D45: 0 | E45: 0 | F45: 0 | G45: 0 | H45: 0 | I45: 0 | J45: 0 | K45: 0 | L45: 0 | M45: 0 | N45: 0 | O45: =SUM(C45:N45) -> 2250 | Q45: =O45/12 -> 187.5 | S45: =O45/365 -> 6.164383562
B46: Home/Rental Insurance | C46: 25 | D46: 0 | E46: 0 | F46: 0 | G46: 0 | H46: 0 | I46: 0 | J46: 0 | K46: 0 | L46: 0 | M46: 0 | N46: 0 | O46: 25 | Q46: =O46/12 -> 2.083333333 | S46: =O46/365 -> 0.06849315068
B47: Electricity | C47: 40 | D47: 0 | E47: 0 | F47: 0 | G47: 0 | H47: 0 | I47: 0 | J47: 0 | K47: 0 | L47: 0 | M47: 0 | N47: 0 | O47: 40 | Q47: 3.333333333 | S47: 0.1095890411
B48: Gas/Oil | C48: 44 | D48: 0 | E48: 0 | F48: 0 | G48: 0 | H48: 0 | I48: 0 | J48: 0 | K48: 0 | L48: 0 | M48: 0 | N48: 0 | O48: 44 | Q48: 3.666666667 | S48: 0.1205479452
B49: Water/Sewer/Trash | C49: 20 | D49: 0 | E49: 0 | F49: 0 | G49: 0 | H49: 0 | I49: 0 | J49: 0 | K49: 0 | L49: 0 | M49: 0 | N49: 0 | O49: 20 | Q49: 1.666666667 | S49: 0.05479452055
B50: Phone | C50: 15 | D50: 0 | E50: 0 | F50: 0 | G50: 0 | H50: 0 | I50: 0 | J50: 0 | K50: 0 | L50: 0 | M50: 0 | N50: 0 | O50: 15 | Q50: 1.25 | S50: 0.04109589041
B51: Cable/Satellite | C51: 0 | D51: 0 | E51: 0 | F51: 0 | G51: 0 | H51: 0 | I51: 0 | J51: 0 | K51: 0 | L51: 0 | M51: 0 | N51: 0 | O51: 0 | Q51: 0 | S51: 0
B52: Internet | C52: 29 | D52: 0 | E52: 0 | F52: 0 | G52: 0 | H52: 0 | I52: 0 | J52: 0 | K52: 0 | L52: 0 | M52: 0 | N52: 0 | O52: 29 | Q52: 2.416666667 | S52: 0.07945205479
B53: Furnishing/Appliances | C53: 0 | D53: 0 | E53: 0 | F53: 0 | G53: 0 | H53: 0 | I53: 0 | J53: 0 | K53: 0 | L53: 0 | M53: 0 | N53: 0 | O53: 0 | Q53: 0 | S53: 0
B54: Lawn/Garden | C54: 0 | D54: 0 | E54: 0 | F54: 0 | G54: 0 | H54: 0 | I54: 0 | J54: 0 | K54: 0 | L54: 0 | M54: 0 | N54: 0 | O54: 0 | Q54: 0 | S54: 0
B55: Maintenance/Improvements | C55: 0 | D55: 0 | E55: 0 | F55: 0 | G55: 0 | H55: 0 | I55: 0 | J55: 0 | K55: 0 | L55: 0 | M55: 0 | N55: 0 | O55: 0 | Q55: 0 | S55: 0
B56: Other | C56: 0 | D56: 0 | E56: 0 | F56: 0 | G56: 0 | H56: 0 | I56: 0 | J56: 0 | K56: 0 | L56: 0 | M56: 0 | N56: 0 | O56: 0 | Q56: 0 | S56: 0
C57: =SUM(C45:C56) -> 2423 | D57: 0 | E57: 0 | F57: 0 | G57: 0 | H57: 0 | I57: 0 | J57: 0 | K57: 0 | L57: 0 | M57: 0 | N57: 0 | O57: 2423 | Q57: =SUM(Q45:Q56) -> 201.9166667 | S57: 6.638356164
B58: TRANSPORTATION
B59: Car payments | C59: 250 | D59: 0 | E59: 0 | F59: 0 | G59: 0 | H59: 0 | I59: 0 | J59: 0 | K59: 0 | L59: 0 | M59: 0 | N59: 0 | O59: =SUM(C59:N59) -> 250 | Q59: =O59/12 -> 20.83333333 | S59: =O59/365 -> 0.6849315068
B60: Auto Insurance | C60: 100 | D60: 0 | E60: 0 | F60: 0 | G60: 0 | H60: 0 | I60: 0 | J60: 0 | K60: 0 | L60: 0 | M60: 0 | N60: 0 | O60: 100 | Q60: =O60/12 -> 8.333333333 | S60: =O60/365 -> 0.2739726027
B61: Fuel | C61: 100 | D61: 0 | E61: 0 | F61: 0 | G61: 0 | H61: 0 | I61: 0 | J61: 0 | K61: 0 | L61: 0 | M61: 0 | N61: 0 | O61: 100 | Q61: 8.333333333 | S61: 0.2739726027
B62: Public Transportation | C62: 0 | D62: 0 | E62: 0 | F62: 0 | G62: 0 | H62: 0 | I62: 0 | J62: 0 | K62: 0 | L62: 0 | M62: 0 | N62: 0 | O62: 0 | Q62: 0 | S62: 0
B63: Repairs/Maintenance | C63: 0 | D63: 0 | E63: 0 | F63: 0 | G63: 0 | H63: 0 | I63: 0 | J63: 0 | K63: 0 | L63: 0 | M63: 0 | N63: 0 | O63: 0 | Q63: 0 | S63: 0
B64: Registration/License | C64: 100 | D64: 0 | E64: 0 | F64: 0 | G64: 0 | H64: 0 | I64: 0 | J64: 0 | K64: 0 | L64: 0 | M64: 0 | N64: 0 | O64: 100 | Q64: 8.333333333 | S64: 0.2739726027
C65: =SUM(C59:C64) -> 550 | D65: 0 | E65: 0 | F65: 0 | G65: 0 | H65: 0 | I65: 0 | J65: 0 | K65: 0 | L65: 0 | M65: 0 | N65: 0 | O65: 550 | Q65: =SUM(Q59:Q64) -> 45.83333333 | S65: =SUM(S59:S64) -> 1.506849315
B66: DAILY LIVING
B67: Groceries | C67: 250 | D67: 0 | E67: 0 | F67: 0 | G67: 0 | H67: 0 | I67: 0 | J67: 0 | K67: 0 | L67: 0 | M67: 0 | N67: 0 | O67: =SUM(C67:N67) -> 250 | Q67: =O67/12 -> 20.83333333 | S67: =O67/365 -> 0.6849315068
B68: Child care | C68: 100 | D68: 0 | E68: 0 | F68: 0 | G68: 0 | H68: 0 | I68: 0 | J68: 0 | K68: 0 | L68: 0 | M68: 0 | N68: 0 | O68: 100 | Q68: =O68/12 -> 8.333333333 | S68: =O68/365 -> 0.2739726027
B69: Dining out | C69: 100 | D69: 0 | E69: 0 | F69: 0 | G69: 0 | H69: 0 | I69: 0 | J69: 0 | K69: 0 | L69: 0 | M69: 0 | N69: 0 | O69: 100 | Q69: 8.333333333 | S69: 0.2739726027
B70: Clothing | C70: 0 | D70: 0 | E70: 0 | F70: 0 | G70: 0 | H70: 0 | I70: 0 | J70: 0 | K70: 0 | L70: 0 | M70: 0 | N70: 0 | O70: 0 | Q70: 0 | S70: 0
B71: Cleaning | C71: 0 | D71: 0 | E71: 0 | F71: 0 | G71: 0 | H71: 0 | I71: 0 | J71: 0 | K71: 0 | L71: 0 | M71: 0 | N71: 0 | O71: 0 | Q71: 0 | S71: 0
B72: Salon/Barber | C72: 100 | D72: 0 | E72: 0 | F72: 0 | G72: 0 | H72: 0 | I72: 0 | J72: 0 | K72: 0 | L72: 0 | M72: 0 | N72: 0 | O72: 100 | Q72: 8.333333333 | S72: 0.2739726027
B73: Pet Supplies | C73: 101 | D73: 0 | E73: 0 | F73: 0 | G73: 0 | H73: 0 | I73: 0 | J73: 0 | K73: 0 | L73: 0 | M73: 0 | N73: 0 | O73: 101 | Q73: 8.416666667 | S73: 0.2767123288
C74: =SUM(C67:C73) -> 651 | D74: 0 | E74: 0 | F74: 0 | G74: 0 | H74: 0 | I74: 0 | J74: 0 | K74: 0 | L74: 0 | M74: 0 | N74: 0 | O74: 651 | Q74: 54.25 | S74: 1.783561644
B75: ENTERTAINMENT
B76: Video/DVD/Movies | C76: 250 | D76: 0 | E76: 0 | F76: 0 | G76: 0 | H76: 0 | I76: 0 | J76: 0 | K76: 0 | L76: 0 | M76: 0 | N76: 0 | O76: =SUM(C76:N76) -> 250 | Q76: =O76/12 -> 20.83333333 | S76: =O76/365 -> 0.6849315068
B77: Concerts/Plays | C77: 100 | D77: 0 | E77: 0 | F77: 0 | G77: 0 | H77: 0 | I77: 0 | J77: 0 | K77: 0 | L77: 0 | M77: 0 | N77: 0 | O77: =SUM(C77:N77) -> 100 | Q77: =O77/12 -> 8.333333333 | S77: =O77/365 -> 0.2739726027
B78: Sports | C78: 100 | D78: 0 | E78: 0 | F78: 0 | G78: 0 | H78: 0 | I78: 0 | J78: 0 | K78: 0 | L78: 0 | M78: 0 | N78: 0 | O78: =SUM(C78:N78) -> 100 | Q78: 8.333333333 | S78: 0.2739726027
B79: Outdoor Recreation | C79: 0 | D79: 0 | E79: 0 | F79: 0 | G79: 0 | H79: 0 | I79: 0 | J79: 0 | K79: 0 | L79: 0 | M79: 0 | N79: 0 | O79: =SUM(C79:N79) -> 0 | Q79: 0 | S79: 0
C80: =SUM(C76:C79) -> 450 | D80: 0 | E80: 0 | F80: 0 | G80: 0 | H80: 0 | I80: 0 | J80: 0 | K80: 0 | L80: 0 | M80: 0 | N80: 0 | O80: 450 | Q80: 37.5 | S80: 1.232876712
B81: HEALTH
B82: Health Insurance | C82: 65 | D82: 0 | E82: 0 | F82: 0 | G82: 0 | H82: 0 | I82: 0 | J82: 0 | K82: 0 | L82: 0 | M82: 0 | N82: 0 | O82: =SUM(C82:N82) -> 65 | Q82: =O82/12 -> 5.416666667 | S82: =O82/365 -> 0.1780821918
B83: Gym membership | C83: 20 | D83: 0 | E83: 0 | F83: 0 | G83: 0 | H83: 0 | I83: 0 | J83: 0 | K83: 0 | L83: 0 | M83: 0 | N83: 0 | O83: 20 | Q83: =O83/12 -> 1.666666667 | S83: =O83/365 -> 0.05479452055
B84: Doctors/Dentist visits | C84: 0 | D84: 0 | E84: 0 | F84: 0 | G84: 0 | H84: 0 | I84: 0 | J84: 0 | K84: 0 | L84: 0 | M84: 0 | N84: 0 | O84: 0 | Q84: 0 | S84: 0
B85: Medicine/Prescriptions | C85: 0 | D85: 0 | E85: 0 | F85: 0 | G85: 0 | H85: 0 | I85: 0 | J85: 0 | K85: 0 | L85: 0 | M85: 0 | N85: 0 | O85: 0 | Q85: 0 | S85: 0
B86: Veterinarian | C86: 0 | D86: 0 | E86: 0 | F86: 0 | G86: 0 | H86: 0 | I86: 0 | J86: 0 | K86: 0 | L86: 0 | M86: 0 | N86: 0 | O86: 0 | Q86: 0 | S86: 0
B87: Life Insurance | C87: 0 | D87: 0 | E87: 0 | F87: 0 | G87: 0 | H87: 0 | I87: 0 | J87: 0 | K87: 0 | L87: 0 | M87: 0 | N87: 0 | O87: 0 | Q87: 0 | S87: 0
C88: =SUM(C82:C87) -> 85 | D88: 0 | E88: 0 | F88: 0 | G88: 0 | H88: 0 | I88: 0 | J88: 0 | K88: 0 | L88: 0 | M88: 0 | N88: 0 | O88: 85 | Q88: 7.083333333 | S88: 0.2328767123
B89: VACATION/HOLIDAY
B90: Airfare | C90: 450 | D90: 0 | E90: 0 | F90: 0 | G90: 0 | H90: 0 | I90: 0 | J90: 0 | K90: 0 | L90: 0 | M90: 0 | N90: 0 | O90: =SUM(C90:N90) -> 450 | Q90: =O90/12 -> 37.5 | S90: =O90/365 -> 1.232876712
B91: Accommodations | C91: 250 | D91: 0 | E91: 0 | F91: 0 | G91: 0 | H91: 0 | I91: 0 | J91: 0 | K91: 0 | L91: 0 | M91: 0 | N91: 0 | O91: 250 | Q91: =O91/12 -> 20.83333333 | S91: =O91/365 -> 0.6849315068
B92: Food | C92: 200 | D92: 0 | E92: 0 | F92: 0 | G92: 0 | H92: 0 | I92: 0 | J92: 0 | K92: 0 | L92: 0 | M92: 0 | N92: 0 | O92: 200 | Q92: 16.66666667 | S92: 0.5479452055
B93: Souvenirs | C93: 50 | D93: 0 | E93: 0 | F93: 0 | G93: 0 | H93: 0 | I93: 0 | J93: 0 | K93: 0 | L93: 0 | M93: 0 | N93: 0 | O93: 50 | Q93: 4.166666667 | S93: 0.1369863014
B94: Pet Boarding | C94: 100 | D94: 0 | E94: 0 | F94: 0 | G94: 0 | H94: 0 | I94: 0 | J94: 0 | K94: 0 | L94: 0 | M94: 0 | N94: 0 | O94: 100 | Q94: 8.333333333 | S94: 0.2739726027
B95: Rental car | C95: 150 | D95: 0 | E95: 0 | F95: 0 | G95: 0 | H95: 0 | I95: 0 | J95: 0 | K95: 0 | L95: 0 | M95: 0 | N95: 0 | O95: 150 | Q95: 12.5 | S95: 0.4109589041
C96: =SUM(C90:C95) -> 1200 | D96: 0 | E96: 0 | F96: 0 | G96: 0 | H96: 0 | I96: 0 | J96: 0 | K96: 0 | L96: 0 | M96: 0 | N96: 0 | O96: 1200 | Q96: 100 | S96: 3.287671233
B97: TOTAL | C97: =C96+C88+C80+C74+C65+C57 -> 5359 | D97: 0 | E97: 0 | F97: 0 | G97: 0 | H97: 0 | I97: 0 | J97: 0 | K97: 0 | L97: 0 | M97: 0 | N97: 0 | O97: 5359 | Q97: =Q96+Q88+Q80+Q74+Q65+Q57 -> 446.5833333 | S97: 14.68219178
B99: CLICK HERE TO CREATE PERSONAL CASH FLOW TEMPLATES IN SMARTSHEET

Sheet Personal Cash Flow Template
B1: PERSONAL CASH FLOW TEMPLATE
F3: SUMMARY
F4: I N C O M E | H4: ='Personal Cash Flow Template'!O30 -> 0
F5: S A V I N G S | H5: ='Personal Cash Flow Template'!O41 -> 0
F6: E X P E N S E S | H6: ='Personal Cash Flow Template'!O97 -> 0
F8: C A S H F L O W | H8: =H4-H5-H6 -> 0
C18: Enter Income, Savings, and Expense Data below. Overview information above and totals will generate automatically.
C19: JAN | D19: FEB | E19: MAR | F19: APR | G19: MAY | H19: JUN | I19: JUL | J19: AUG | K19: SEPT | L19: OCT | M19: NOV | N19: DEC | O19: YEARLY TOTALS | Q19: MONTHLY AVG | S19: DAILY AVG
B20: INCOME
B22: Salary/Wages | O22: =SUM(C22:N22) -> 0 | Q22: =O22/12 -> 0 | S22: =O22/365 -> 0
B23: Interest Income | O23: 0 | Q23: =O23/12 -> 0 | S23: =O23/365 -> 0
B24: Dividends | O24: 0 | Q24: 0 | S24: 0
B25: Refunds/Reimbursements | O25: 0 | Q25: 0 | S25: 0
B26: Business | O26: 0 | Q26: 0 | S26: 0
B27: Pension | O27: 0 | Q27: 0 | S27: 0
B28: Misc. | O28: 0 | Q28: 0 | S28: 0
B30: TOTAL | C30: =SUM(C22:C28) -> 0 | D30: 0 | E30: 0 | F30: 0 | G30: 0 | H30: 0 | I30: 0 | J30: 0 | K30: 0 | L30: 0 | M30: 0 | N30: 0 | O30: =SUM(C30:N30) -> 0 | Q30: =SUM(Q22:Q28) -> 0 | S30: =SUM(S22:S28) -> 0
B32: SAVINGS
B34: Emergency Fund | C34: 0 | D34: 0 | E34: 0 | F34: 0 | G34: 0 | H34: 0 | I34: 0 | J34: 0 | K34: 0 | L34: 0 | M34: 0 | N34: 0 | O34: =SUM(C34:N34) -> 0 | Q34: =O34/12 -> 0 | S34: =O34/365 -> 0
B35: Transfer to Savings | C35: 0 | D35: 0 | E35: 0 | F35: 0 | G35: 0 | H35: 0 | I35: 0 | J35: 0 | K35: 0 | L35: 0 | M35: 0 | N35: 0 | O35: 0 | Q35: =O35/12 -> 0 | S35: =O35/365 -> 0
B36: Retirement(401K, IRA) | C36: 0 | D36: 0 | E36: 0 | F36: 0 | G36: 0 | H36: 0 | I36: 0 | J36: 0 | K36: 0 | L36: 0 | M36: 0 | N36: 0 | O36: 0 | Q36: 0 | S36: 0
B37: Investments | C37: 0 | D37: 0 | E37: 0 | F37: 0 | G37: 0 | H37: 0 | I37: 0 | J37: 0 | K37: 0 | L37: 0 | M37: 0 | N37: 0 | O37: 0 | Q37: 0 | S37: 0
B38: Education | C38: 0 | D38: 0 | E38: 0 | F38: 0 | G38: 0 | H38: 0 | I38: 0 | J38: 0 | K38: 0 | L38: 0 | M38: 0 | N38: 0 | O38: 0 | Q38: 0 | S38: 0
B39: Other | C39: 0 | D39: 0 | E39: 0 | F39: 0 | G39: 0 | H39: 0 | I39: 0 | J39: 0 | K39: 0 | L39: 0 | M39: 0 | N39: 0 | O39: 0 | Q39: 0 | S39: 0
B41: TOTAL | C41: =SUM(C34:C39) -> 0 | D41: 0 | E41: 0 | F41: 0 | G41: 0 | H41: 0 | I41: 0 | J41: 0 | K41: 0 | L41: 0 | M41: 0 | N41: 0 | O41: =SUM(C41:N41) -> 0 | Q41: =SUM(Q34:Q39) -> 0 | S41: =SUM(S34:S39) -> 0
B43: EXPENSES
B44: HOME
B45: Mortgage/rent | C45: 0 | D45: 0 | E45: 0 | F45: 0 | G45: 0 | H45: 0 | I45: 0 | J45: 0 | K45: 0 | L45: 0 | M45: 0 | N45: 0 | O45: =SUM(C45:N45) -> 0 | Q45: =O45/12 -> 0 | S45: =O45/365 -> 0
B46: Home/Rental Insurance | C46: 0 | D46: 0 | E46: 0 | F46: 0 | G46: 0 | H46: 0 | I46: 0 | J46: 0 | K46: 0 | L46: 0 | M46: 0 | N46: 0 | O46: 0 | Q46: =O46/12 -> 0 | S46: =O46/365 -> 0
B47: Electricity | C47: 0 | D47: 0 | E47: 0 | F47: 0 | G47: 0 | H47: 0 | I47: 0 | J47: 0 | K47: 0 | L47: 0 | M47: 0 | N47: 0 | O47: 0 | Q47: 0 | S47: 0
B48: Gas/Oil | C48: 0 | D48: 0 | E48: 0 | F48: 0 | G48: 0 | H48: 0 | I48: 0 | J48: 0 | K48: 0 | L48: 0 | M48: 0 | N48: 0 | O48: 0 | Q48: 0 | S48: 0
B49: Water/Sewer/Trash | C49: 0 | D49: 0 | E49: 0 | F49: 0 | G49: 0 | H49: 0 | I49: 0 | J49: 0 | K49: 0 | L49: 0 | M49: 0 | N49: 0 | O49: 0 | Q49: 0 | S49: 0
B50: Phone | C50: 0 | D50: 0 | E50: 0 | F50: 0 | G50: 0 | H50: 0 | I50: 0 | J50: 0 | K50: 0 | L50: 0 | M50: 0 | N50: 0 | O50: 0 | Q50: 0 | S50: 0
B51: Cable/Satellite | C51: 0 | D51: 0 | E51: 0 | F51: 0 | G51: 0 | H51: 0 | I51: 0 | J51: 0 | K51: 0 | L51: 0 | M51: 0 | N51: 0 | O51: 0 | Q51: 0 | S51: 0
B52: Internet | C52: 0 | D52: 0 | E52: 0 | F52: 0 | G52: 0 | H52: 0 | I52: 0 | J52: 0 | K52: 0 | L52: 0 | M52: 0 | N52: 0 | O52: 0 | Q52: 0 | S52: 0
B53: Furnishing/Appliances | C53: 0 | D53: 0 | E53: 0 | F53: 0 | G53: 0 | H53: 0 | I53: 0 | J53: 0 | K53: 0 | L53: 0 | M53: 0 | N53: 0 | O53: 0 | Q53: 0 | S53: 0
B54: Lawn/Garden | C54: 0 | D54: 0 | E54: 0 | F54: 0 | G54: 0 | H54: 0 | I54: 0 | J54: 0 | K54: 0 | L54: 0 | M54: 0 | N54: 0 | O54: 0 | Q54: 0 | S54: 0
B55: Maintenance/Improvements | C55: 0 | D55: 0 | E55: 0 | F55: 0 | G55: 0 | H55: 0 | I55: 0 | J55: 0 | K55: 0 | L55: 0 | M55: 0 | N55: 0 | O55: 0 | Q55: 0 | S55: 0
B56: Other | C56: 0 | D56: 0 | E56: 0 | F56: 0 | G56: 0 | H56: 0 | I56: 0 | J56: 0 | K56: 0 | L56: 0 | M56: 0 | N56: 0 | O56: 0 | Q56: 0 | S56: 0
C57: =SUM(C45:C56) -> 0 | D57: 0 | E57: 0 | F57: 0 | G57: 0 | H57: 0 | I57: 0 | J57: 0 | K57: 0 | L57: 0 | M57: 0 | N57: 0 | O57: 0 | Q57: =SUM(Q45:Q56) -> 0 | S57: 0
B58: TRANSPORTATION
B59: Car payments | C59: 0 | D59: 0 | E59: 0 | F59: 0 | G59: 0 | H59: 0 | I59: 0 | J59: 0 | K59: 0 | L59: 0 | M59: 0 | N59: 0 | O59: =SUM(C59:N59) -> 0 | Q59: =O59/12 -> 0 | S59: =O59/365 -> 0
B60: Auto Insurance | C60: 0 | D60: 0 | E60: 0 | F60: 0 | G60: 0 | H60: 0 | I60: 0 | J60: 0 | K60: 0 | L60: 0 | M60: 0 | N60: 0 | O60: 0 | Q60: =O60/12 -> 0 | S60: =O60/365 -> 0
B61: Fuel | C61: 0 | D61: 0 | E61: 0 | F61: 0 | G61: 0 | H61: 0 | I61: 0 | J61: 0 | K61: 0 | L61: 0 | M61: 0 | N61: 0 | O61: 0 | Q61: 0 | S61: 0
B62: Public Transportation | C62: 0 | D62: 0 | E62: 0 | F62: 0 | G62: 0 | H62: 0 | I62: 0 | J62: 0 | K62: 0 | L62: 0 | M62: 0 | N62: 0 | O62: 0 | Q62: 0 | S62: 0
B63: Repairs/Maintenance | C63: 0 | D63: 0 | E63: 0 | F63: 0 | G63: 0 | H63: 0 | I63: 0 | J63: 0 | K63: 0 | L63: 0 | M63: 0 | N63: 0 | O63: 0 | Q63: 0 | S63: 0
B64: Registration/License | C64: 0 | D64: 0 | E64: 0 | F64: 0 | G64: 0 | H64: 0 | I64: 0 | J64: 0 | K64: 0 | L64: 0 | M64: 0 | N64: 0 | O64: 0 | Q64: 0 | S64: 0
C65: =SUM(C59:C64) -> 0 | D65: 0 | E65: 0 | F65: 0 | G65: 0 | H65: 0 | I65: 0 | J65: 0 | K65: 0 | L65: 0 | M65: 0 | N65: 0 | O65: 0 | Q65: =SUM(Q59:Q64) -> 0 | S65: =SUM(S59:S64) -> 0
B66: DAILY LIVING
B67: Groceries | C67: 0 | D67: 0 | E67: 0 | F67: 0 | G67: 0 | H67: 0 | I67: 0 | J67: 0 | K67: 0 | L67: 0 | M67: 0 | N67: 0 | O67: =SUM(C67:N67) -> 0 | Q67: =O67/12 -> 0 | S67: =O67/365 -> 0
B68: Child care | C68: 0 | D68: 0 | E68: 0 | F68: 0 | G68: 0 | H68: 0 | I68: 0 | J68: 0 | K68: 0 | L68: 0 | M68: 0 | N68: 0 | O68: 0 | Q68: =O68/12 -> 0 | S68: =O68/365 -> 0
B69: Dining out | C69: 0 | D69: 0 | E69: 0 | F69: 0 | G69: 0 | H69: 0 | I69: 0 | J69: 0 | K69: 0 | L69: 0 | M69: 0 | N69: 0 | O69: 0 | Q69: 0 | S69: 0
B70: Clothing | C70: 0 | D70: 0 | E70: 0 | F70: 0 | G70: 0 | H70: 0 | I70: 0 | J70: 0 | K70: 0 | L70: 0 | M70: 0 | N70: 0 | O70: 0 | Q70: 0 | S70: 0
B71: Cleaning | C71: 0 | D71: 0 | E71: 0 | F71: 0 | G71: 0 | H71: 0 | I71: 0 | J71: 0 | K71: 0 | L71: 0 | M71: 0 | N71: 0 | O71: 0 | Q71: 0 | S71: 0
B72: Salon/Barber | C72: 0 | D72: 0 | E72: 0 | F72: 0 | G72: 0 | H72: 0 | I72: 0 | J72: 0 | K72: 0 | L72: 0 | M72: 0 | N72: 0 | O72: 0 | Q72: 0 | S72: 0
B73: Pet Supplies | C73: 0 | D73: 0 | E73: 0 | F73: 0 | G73: 0 | H73: 0 | I73: 0 | J73: 0 | K73: 0 | L73: 0 | M73: 0 | N73: 0 | O73: 0 | Q73: 0 | S73: 0
C74: =SUM(C67:C73) -> 0 | D74: 0 | E74: 0 | F74: 0 | G74: 0 | H74: 0 | I74: 0 | J74: 0 | K74: 0 | L74: 0 | M74: 0 | N74: 0 | O74: 0 | Q74: 0 | S74: 0
B75: ENTERTAINMENT
B76: Video/DVD/Movies | C76: 0 | D76: 0 | E76: 0 | F76: 0 | G76: 0 | H76: 0 | I76: 0 | J76: 0 | K76: 0 | L76: 0 | M76: 0 | N76: 0 | O76: =SUM(C76:N76) -> 0 | Q76: =O76/12 -> 0 | S76: =O76/365 -> 0
B77: Concerts/Plays | C77: 0 | D77: 0 | E77: 0 | F77: 0 | G77: 0 | H77: 0 | I77: 0 | J77: 0 | K77: 0 | L77: 0 | M77: 0 | N77: 0 | O77: =SUM(C77:N77) -> 0 | Q77: =O77/12 -> 0 | S77: =O77/365 -> 0
B78: Sports | C78: 0 | D78: 0 | E78: 0 | F78: 0 | G78: 0 | H78: 0 | I78: 0 | J78: 0 | K78: 0 | L78: 0 | M78: 0 | N78: 0 | O78: =SUM(C78:N78) -> 0 | Q78: 0 | S78: 0
B79: Outdoor Recreation | C79: 0 | D79: 0 | E79: 0 | F79: 0 | G79: 0 | H79: 0 | I79: 0 | J79: 0 | K79: 0 | L79: 0 | M79: 0 | N79: 0 | O79: =SUM(C79:N79) -> 0 | Q79: 0 | S79: 0
C80: =SUM(C76:C79) -> 0 | D80: 0 | E80: 0 | F80: 0 | G80: 0 | H80: 0 | I80: 0 | J80: 0 | K80: 0 | L80: 0 | M80: 0 | N80: 0 | O80: 0 | Q80: 0 | S80: 0
B81: HEALTH
B82: Health Insurance | C82: 0 | D82: 0 | E82: 0 | F82: 0 | G82: 0 | H82: 0 | I82: 0 | J82: 0 | K82: 0 | L82: 0 | M82: 0 | N82: 0 | O82: =SUM(C82:N82) -> 0 | Q82: =O82/12 -> 0 | S82: =O82/365 -> 0
B83: Gym membership | C83: 0 | D83: 0 | E83: 0 | F83: 0 | G83: 0 | H83: 0 | I83: 0 | J83: 0 | K83: 0 | L83: 0 | M83: 0 | N83: 0 | O83: 0 | Q83: =O83/12 -> 0 | S83: =O83/365 -> 0
B84: Doctors/Dentist visits | C84: 0 | D84: 0 | E84: 0 | F84: 0 | G84: 0 | H84: 0 | I84: 0 | J84: 0 | K84: 0 | L84: 0 | M84: 0 | N84: 0 | O84: 0 | Q84: 0 | S84: 0
B85: Medicine/Prescriptions | C85: 0 | D85: 0 | E85: 0 | F85: 0 | G85: 0 | H85: 0 | I85: 0 | J85: 0 | K85: 0 | L85: 0 | M85: 0 | N85: 0 | O85: 0 | Q85: 0 | S85: 0
B86: Veterinarian | C86: 0 | D86: 0 | E86: 0 | F86: 0 | G86: 0 | H86: 0 | I86: 0 | J86: 0 | K86: 0 | L86: 0 | M86: 0 | N86: 0 | O86: 0 | Q86: 0 | S86: 0
B87: Life Insurance | C87: 0 | D87: 0 | E87: 0 | F87: 0 | G87: 0 | H87: 0 | I87: 0 | J87: 0 | K87: 0 | L87: 0 | M87: 0 | N87: 0 | O87: 0 | Q87: 0 | S87: 0
C88: =SUM(C82:C87) -> 0 | D88: 0 | E88: 0 | F88: 0 | G88: 0 | H88: 0 | I88: 0 | J88: 0 | K88: 0 | L88: 0 | M88: 0 | N88: 0 | O88: 0 | Q88: 0 | S88: 0
B89: VACATION/HOLIDAY
B90: Airfare | C90: 0 | D90: 0 | E90: 0 | F90: 0 | G90: 0 | H90: 0 | I90: 0 | J90: 0 | K90: 0 | L90: 0 | M90: 0 | N90: 0 | O90: =SUM(C90:N90) -> 0 | Q90: =O90/12 -> 0 | S90: =O90/365 -> 0
B91: Accommodations | C91: 0 | D91: 0 | E91: 0 | F91: 0 | G91: 0 | H91: 0 | I91: 0 | J91: 0 | K91: 0 | L91: 0 | M91: 0 | N91: 0 | O91: 0 | Q91: =O91/12 -> 0 | S91: =O91/365 -> 0
B92: Food | C92: 0 | D92: 0 | E92: 0 | F92: 0 | G92: 0 | H92: 0 | I92: 0 | J92: 0 | K92: 0 | L92: 0 | M92: 0 | N92: 0 | O92: 0 | Q92: 0 | S92: 0
B93: Souvenirs | C93: 0 | D93: 0 | E93: 0 | F93: 0 | G93: 0 | H93: 0 | I93: 0 | J93: 0 | K93: 0 | L93: 0 | M93: 0 | N93: 0 | O93: 0 | Q93: 0 | S93: 0
B94: Pet Boarding | C94: 0 | D94: 0 | E94: 0 | F94: 0 | G94: 0 | H94: 0 | I94: 0 | J94: 0 | K94: 0 | L94: 0 | M94: 0 | N94: 0 | O94: 0 | Q94: 0 | S94: 0
B95: Rental car | C95: 0 | D95: 0 | E95: 0 | F95: 0 | G95: 0 | H95: 0 | I95: 0 | J95: 0 | K95: 0 | L95: 0 | M95: 0 | N95: 0 | O95: 0 | Q95: 0 | S95: 0
C96: =SUM(C90:C95) -> 0 | D96: 0 | E96: 0 | F96: 0 | G96: 0 | H96: 0 | I96: 0 | J96: 0 | K96: 0 | L96: 0 | M96: 0 | N96: 0 | O96: 0 | Q96: 0 | S96: 0
B97: TOTAL | C97: =C96+C88+C80+C74+C65+C57 -> 0 | D97: 0 | E97: 0 | F97: 0 | G97: 0 | H97: 0 | I97: 0 | J97: 0 | K97: 0 | L97: 0 | M97: 0 | N97: 0 | O97: 0 | Q97: =Q96+Q88+Q80+Q74+Q65+Q57 -> 0 | S97: 0
D103: CLICK HERE TO CREATE BUDGET TEMPLATES IN SMARTSHEET
